Workbook

Sheet 11-18 лет
A1: СОГЛАСОВАНО | O1: УТВЕРЖДЕНО
A2: Директор МБОУ "СОШ №2" г.Мензелинска | O2: ООО "КРЕПЫШ"
A3: __________________Габдуллин Н.С. | O3: _______________________Ефремов В.Ю.
A6: Меню для организации питания детей возрасте от 11 до 18 лет в образовательных учреждениях Мензелинского района РТ на 1 полугодие 2022-2023 учебный год.
A8: 1 день, 1 неделя
A9: № рецептуры | B9: Прием пищи, наименование блюда | C9: Масса | D9: Пищевые вещества | G9: Энергетическая ценность | H9: Витамины | M9: Минеральные вещества
D10: Белки | E10: Жиры | F10: Углеводы | H10: B1 | I10: B2 | J10: A | K10: D | L10: C | M10: Na | N10: K | O10: Ca | P10: Mg | Q10: P | R10: Fe | S10: I | T10: Se | U10: F
C11: г | D11: г | E11: г | F11: г | G11: ккал | H11: мг | I11: мг | J11: мкг рет.экв | K11: мкг | L11: мг | M11: мг | N11: мг | O11: мг | P11: мг | Q11: мг | R11: мг | S11: мкг | T11: мкг | U11: мкг
B12: Понедельник, 1 неделя
B13: Горячий завтрак | C13: 11-18
A14: 54-11з | B14: Салат из моркови с яблоками с растительным маслом | C14: 100 | D14: 0.91 | E14: 10.17 | F14: 7.15 | G14: 123.8 | H14: 0.04 | I14: 0.03 | J14: 732.9 | K14: 0 | L14: 2 | M14: 114 | N14: 170 | O14: 19 | P14: 22 | Q14: 32 | R14: 1 | S14: 16.98 | T14: 0.2 | U14: 35.95
A15: 54-4г-2020 | B15: Каша гречневая рассыпчатая | C15: 180 | D15: 9.87 | E15: 7.61 | F15: 43.12 | G15: 280.5 | H15: 0.26 | I15: 0.14 | J15: 23.02 | K15: 0.11 | L15: 0 | M15: 180 | N15: 263 | O15: 57 | P15: 144 | Q15: 217 | R15: 4.8 | S15: 26.73 | T15: 4.3 | U15: 19.27
A16: ном.рец №174 | B16: Тефтели мясные из говядины, полуфабрикат в соусе | C16: 75/30 | D16: 10.81 | E16: 10.4 | F16: 8.42 | G16: 168.9 | H16: 0 | I16: 0 | J16: 38.45 | K16: 0.01 | L16: 1.79 | M16: 3 | N16: 43 | O16: 45.75 | P16: 35.13 | Q16: 109 | R16: 1.6 | S16: 0 | T16: 0 | U16: 0
A17: 54-4гн-2020 | B17: Чай с молоком и сахаром | C17: 200 | D17: 1.6 | E17: 1.1 | F17: 8.6 | G17: 50.9 | H17: 0.01 | I17: 0.07 | J17: 6.9 | K17: 0 | L17: 0.3 | M17: 19.68 | N17: 81.35 | O17: 103.48 | P17: 9.92 | Q17: 46.33 | R17: 0.78 | S17: 4.5 | T17: 0.88 | U17: 10
A18: Пром. | B18: Хлеб пшеничный | C18: 30 | D18: 2.3 | E18: 0.2 | F18: 14.8 | G18: 70.3 | H18: 0.03 | I18: 0.01 | J18: 0 | K18: 0 | L18: 0 | M18: 149.7 | N18: 27.9 | O18: 6 | P18: 4.2 | Q18: 19.5 | R18: 0.33 | S18: 0.96 | T18: 1.8 | U18: 4.35
A19: Пром. | B19: Хлеб ржаной | C19: 20 | D19: 1.3 | E19: 0.2 | F19: 6.7 | G19: 34.2 | H19: 0.04 | I19: 0.02 | J19: 0 | K19: 0 | L19: 0 | M19: 122 | N19: 49 | O19: 7 | P19: 9.4 | Q19: 31.6 | R19: 0.78 | S19: 0 | T19: 6.18 | U19: 0
B20: Итого за Завтрак | C20: 635 | D20: =SUM(D14:D19) -> 26.79 | E20: =SUM(E14:E19) -> 29.68 | F20: 88.79 | G20: 728.6 | H20: 0.38 | I20: 0.27 | J20: 801.27 | K20: 0.12 | L20: 4.09 | M20: 588.38 | N20: 634.25 | O20: 238.23 | P20: 224.65 | Q20: 455.43 | R20: 9.29 | S20: 49.17 | T20: 13.36 | U20: 69.57
B21: Итого за день | C21: 635 | D21: =D20 -> 26.79 | E21: =E20 -> 29.68 | F21: 88.79 | G21: 728.6 | H21: 0.38 | I21: 0.27 | J21: 801.27 | K21: 0.12 | L21: 4.09 | M21: 588.38 | N21: 634.25 | O21: 238.23 | P21: 224.65 | Q21: 455.43 | R21: 9.29 | S21: 49.17 | T21: 13.36 | U21: 69.57
A23: 2 день, 1 неделя
A24: № рецептуры | B24: Прием пищи, наименование блюда | C24: Масса | D24: Пищевые вещества | G24: Энергетическая ценность | H24: Витамины | M24: Минеральные вещества
D25: Белки | E25: Жиры | F25: Углеводы | H25: B1 | I25: B2 | J25: A | K25: D | L25: C | M25: Na | N25: K | O25: Ca | P25: Mg | Q25: P | R25: Fe | S25: I | T25: Se | U25: F
C26: г | D26: г | E26: г | F26: г | G26: ккал | H26: мг | I26: мг | J26: мкг рет.экв | K26: мкг | L26: мг | M26: мг | N26: мг | O26: мг | P26: мг | Q26: мг | R26: мг | S26: мкг | T26: мкг | U26: мкг
B27: Вторник, 1 неделя
B28: Горячий завтрак | C28: 11-18
A29: 54-7з | B29: Салат из белокочанной капусты с растительным маслом | C29: 100 | D29: 2.52 | E29: 10.15 | F29: 10.39 | G29: 143 | H29: 0.03 | I29: 0.05 | J29: 122.25 | K29: 0 | L29: 23 | M29: 112 | N29: 343 | O29: 59 | P29: 21 | Q29: 44 | R29: 0.9 | S29: 17.88 | T29: 0.3 | U29: 21.1
A30: 100 | B30: Суп картофельный с вермишелью | C30: 250 | D30: 2.8 | E30: 2.8 | F30: 20.2 | G30: 118 | H30: 0.1 | I30: 0 | J30: 0.2 | K30: 0 | L30: 6.6 | M30: 0 | N30: 0 | O30: 23.9 | P30: 23.4 | Q30: 57.7 | R30: 1.1 | S30: 0 | T30: 0 | U30: 0
A31: 54-21гн-2020 | B31: Какао с молоком | C31: 200 | D31: 4.7 | E31: 3.5 | F31: 12.5 | G31: 100.4 | H31: 0.04 | I31: 0.16 | J31: 17.25 | K31: 0 | L31: 0.68 | M31: 49.95 | N31: 220.33 | O31: 167.68 | P31: 34.32 | Q31: 130.28 | R31: 1.09 | S31: 11.7 | T31: 2.29 | U31: 38.25
A32: Пром. | B32: Хлеб пшеничный | C32: 30 | D32: 2.3 | E32: 0.2 | F32: 14.8 | G32: 70.3 | H32: 0.03 | I32: 0.01 | J32: 0 | K32: 0 | L32: 0 | M32: 149.7 | N32: 27.9 | O32: 6 | P32: 4.2 | Q32: 19.5 | R32: 0.33 | S32: 0.96 | T32: 1.8 | U32: 4.35
A33: Пром. | B33: Хлеб ржаной | C33: 20 | D33: 1.3 | E33: 0.2 | F33: 6.7 | G33: 34.2 | H33: 0.04 | I33: 0.02 | J33: 0 | K33: 0 | L33: 0 | M33: 122 | N33: 49 | O33: 7 | P33: 9.4 | Q33: 31.6 | R33: 0.78 | S33: 0 | T33: 6.18 | U33: 0
B34: Итого за Завтрак | C34: =SUM(C29:C33) -> 600 | D34: =SUM(D29:D33) -> 13.62 | E34: =SUM(E29:E33) -> 16.85 | F34: 64.59 | G34: 465.9 | H34: 0.24 | I34: 0.24 | J34: 139.7 | K34: 0 | L34: 30.28 | M34: 433.65 | N34: 640.23 | O34: 263.58 | P34: 92.32 | Q34: 283.08 | R34: 4.2 | S34: 30.54 | T34: 10.57 | U34: 63.7
B35: Итого за день | C35: =C34 -> 600 | D35: =D34 -> 13.62 | E35: =E34 -> 16.85 | F35: 64.59 | G35: 465.9 | H35: 0.24 | I35: 0.24 | J35: 139.7 | K35: 0 | L35: 30.28 | M35: 433.65 | N35: 640.23 | O35: 263.58 | P35: 92.32 | Q35: 283.08 | R35: 4.2 | S35: 30.54 | T35: 10.57 | U35: 63.7
A37: 3 день, 1 неделя
A38: № рецептуры | B38: Прием пищи, наименование блюда | C38: Масса | D38: Пищевые вещества | G38: Энергетическая ценность | H38: Витамины | M38: Минеральные вещества
D39: Белки | E39: Жиры | F39: Углеводы | H39: B1 | I39: B2 | J39: A | K39: D | L39: C | M39: Na | N39: K | O39: Ca | P39: Mg | Q39: P | R39: Fe | S39: I | T39: Se | U39: F
C40: г | D40: г | E40: г | F40: г | G40: ккал | H40: мг | I40: мг | J40: мкг рет.экв | K40: мкг | L40: мг | M40: мг | N40: мг | O40: мг | P40: мг | Q40: мг | R40: мг | S40: мкг | T40: мкг | U40: мкг
B41: Среда, 1 неделя
B42: Горячий завтрак | C42: 11-18
A43: 54-13з | B43: Салат из свеклы отварной с растительным маслом | C43: 100 | D43: 1.34 | E43: 4.48 | F43: 7.61 | G43: 76.1 | H43: 0.01 | I43: 0.03 | J43: 1.14 | K43: 0 | L43: 4 | M43: 131 | N43: 227 | O43: 32 | P43: 18 | Q43: 36 | R43: 1.2 | S43: 19.98 | T43: 0.6 | U43: 19
A44: 54-1г-2020 | B44: Макароны отварные | C44: 180 | D44: 6.39 | E44: 5.91 | F44: 39.36 | G44: 236.2 | H44: 0.07 | I44: 0.03 | J44: 22.03 | K44: 0.11 | L44: 0 | M44: 179 | N44: 64 | O44: 127 | P44: 9 | Q44: 48 | R44: 0.9 | S44: 24.92 | T44: 0.1 | U44: 14.31
A45: №243 | B45: Сосиски говяжьи отварные, п/ф (2 шт) | C45: 100 | D45: 13.2 | E45: 22.84 | F45: 1.8 | G45: 247.15 | H45: 0 | I45: 0 | J45: 0.08 | K45: 0.01 | L45: 0 | M45: 0 | N45: 0 | O45: 7.44 | P45: 15.51 | Q45: 137.39 | R45: 1.74 | S45: 0 | T45: 0 | U45: 0
A46: 54-3гн-2020 | B46: Чай с лимоном и сахаром | C46: 207 | D46: 0.2 | E46: 0.1 | F46: 6.6 | G46: 27.9 | H46: 0 | I46: 0.01 | J46: 0.38 | K46: 0 | L46: 1.16 | M46: 1.26 | N46: 30.23 | O46: 67 | P46: 4.56 | Q46: 8.52 | R46: 0.77 | S46: 0.01 | T46: 0.02 | U46: 0.7
A47: Пром. | B47: Хлеб ржаной | C47: 20 | D47: 1.3 | E47: 0.2 | F47: 6.7 | G47: 34.2 | H47: 0.04 | I47: 0.02 | J47: 0 | K47: 0 | L47: 0 | M47: 122 | N47: 49 | O47: 7 | P47: 9.4 | Q47: 31.6 | R47: 0.78 | S47: 0 | T47: 6.18 | U47: 0
A48: Пром. | B48: Хлеб пшеничный | C48: 30 | D48: 2.3 | E48: 0.2 | F48: 14.8 | G48: 70.3 | H48: 0.03 | I48: 0.01 | J48: 0 | K48: 0 | L48: 0 | M48: 149.7 | N48: 27.9 | O48: 6 | P48: 4.2 | Q48: 19.5 | R48: 0.33 | S48: 0.96 | T48: 1.8 | U48: 4.35
B49: Итого за Завтрак | C49: =SUM(C43:C48) -> 637 | D49: =SUM(D43:D48) -> 24.73 | E49: =SUM(E43:E48) -> 33.73 | F49: 76.87 | G49: 691.85 | H49: 0.15 | I49: 0.1 | J49: 23.63 | K49: 0.12 | L49: 5.16 | M49: 582.96 | N49: 398.13 | O49: 246.44 | P49: 60.67 | Q49: 281.01 | R49: 5.72 | S49: 45.87 | T49: 8.7 | U49: 38.36
B50: Итого за день | C50: =C49 -> 637 | D50: =D49 -> 24.73 | E50: =E49 -> 33.73 | F50: 76.87 | G50: 691.85 | H50: 0.15 | I50: 0.1 | J50: 23.63 | K50: 0.12 | L50: 5.16 | M50: 582.96 | N50: 398.13 | O50: 246.44 | P50: 60.67 | Q50: 281.01 | R50: 5.72 | S50: 45.87 | T50: 8.7 | U50: 38.36
A52: 4 день, 1 неделя
A53: № рецептуры | B53: Прием пищи, наименование блюда | C53: Масса | D53: Пищевые вещества | G53: Энергетическая ценность | H53: Витамины | M53: Минеральные вещества
D54: Белки | E54: Жиры | F54: Углеводы | H54: B1 | I54: B2 | J54: A | K54: D | L54: C | M54: Na | N54: K | O54: Ca | P54: Mg | Q54: P | R54: Fe | S54: I | T54: Se | U54: F
C55: г | D55: г | E55: г | F55: г | G55: ккал | H55: мг | I55: мг | J55: мкг рет.экв | K55: мкг | L55: мг | M55: мг | N55: мг | O55: мг | P55: мг | Q55: мг | R55: мг | S55: мкг | T55: мкг | U55: мкг
B56: Четверг, 1 неделя
B57: Горячий завтрак | C57: 11-18
A58: 54-9з-2020 | B58: Салат из белокочанной капусты с морковью, яблоками и растительным маслом | C58: 100 | D58: 1.37 | E58: 10.15 | F58: 6.03 | G58: 120.9 | H58: 0.02 | I58: 0.03 | J58: 241.63 | K58: 0 | L58: 11 | M58: 111 | N58: 221 | O58: 35 | P58: 17 | Q58: 27 | R58: 0.8 | S58: 16.44 | T58: 0.3 | U58: 18.3
A59: 54-11г-2020 | B59: Картофельное пюре | C59: 180 | D59: 3.69 | E59: 6.37 | F59: 23.79 | G59: 167.3 | H59: 0.14 | I59: 0.12 | J59: 28.55 | K59: 0.11 | L59: 12 | M59: 195 | N59: 750 | O59: 47 | P59: 34 | Q59: 101 | R59: 1.2 | S59: 34.15 | T59: 1 | U59: 51.35
A60: № рец. 290 | B60: Птица тушеная в соусе | C60: 50/50 | D60: 13.8 | E60: 14.8 | F60: 3.9 | G60: 211 | H60: 0.1 | I60: 0 | J60: 0 | K60: 0 | L60: 1.5 | M60: 0 | N60: 0 | O60: 26.4 | P60: 16.6 | Q60: 115.3 | R60: 0.9 | S60: 0 | T60: 0 | U60: 0
A61: 54-2гн-2020 | B61: Кофейный напиток с молоком | C61: 200 | D61: 3.9 | E61: 2.9 | F61: 11.2 | G61: 86 | H61: 0.03 | I61: 0.13 | J61: 13.29 | K61: 0 | L61: 0.52 | M61: 38.55 | N61: 183.98 | O61: 148.32 | P61: 30.67 | Q61: 106.79 | R61: 1.06 | S61: 9 | T61: 1.76 | U61: 20
A62: Пром. | B62: Хлеб ржаной | C62: 20 | D62: 1.3 | E62: 0.2 | F62: 6.7 | G62: 34.2 | H62: 0.04 | I62: 0.02 | J62: 0 | K62: 0 | L62: 0 | M62: 122 | N62: 49 | O62: 7 | P62: 9.4 | Q62: 31.6 | R62: 0.78 | S62: 0 | T62: 6.18 | U62: 0
A63: Пром. | B63: Хлеб пшеничный | C63: 30 | D63: 2.3 | E63: 0.2 | F63: 14.8 | G63: 70.3 | H63: 0.03 | I63: 0.01 | J63: 0 | K63: 0 | L63: 0 | M63: 149.7 | N63: 27.9 | O63: 6 | P63: 4.2 | Q63: 19.5 | R63: 0.33 | S63: 0.96 | T63: 1.8 | U63: 4.35
B64: Итого за Завтрак | C64: 630 | D64: =SUM(D58:D63) -> 26.36 | E64: =SUM(E58:E63) -> 34.62 | F64: 66.42 | G64: =SUM(G58:G63) -> 689.7 | H64: 0.36 | I64: 0.31 | J64: 283.47 | K64: 0.11 | L64: 25.02 | M64: 616.25 | N64: 1231.88 | O64: 269.72 | P64: 111.87 | Q64: 401.19 | R64: 5.07 | S64: 60.55 | T64: 11.04 | U64: 94
B65: Итого за день | C65: =C64 -> 630 | D65: =D64 -> 26.36 | E65: 34.62 | F65: 66.42 | G65: =G64 -> 689.7 | H65: 0.36 | I65: 0.31 | J65: 283.47 | K65: 0.11 | L65: 25.02 | M65: 616.25 | N65: 1231.88 | O65: 269.72 | P65: 111.87 | Q65: 401.19 | R65: 5.07 | S65: 60.55 | T65: 11.04 | U65: 94
A67: 5 день, 1 неделя
A68: № рецептуры | B68: Прием пищи, наименование блюда | C68: Масса | D68: Пищевые вещества | G68: Энергетическая ценность | H68: Витамины | M68: Минеральные вещества
D69: Белки | E69: Жиры | F69: Углеводы | H69: B1 | I69: B2 | J69: A | K69: D | L69: C | M69: Na | N69: K | O69: Ca | P69: Mg | Q69: P | R69: Fe | S69: I | T69: Se | U69: F
C70: г | D70: г | E70: г | F70: г | G70: ккал | H70: мг | I70: мг | J70: мкг рет.экв | K70: мкг | L70: мг | M70: мг | N70: мг | O70: мг | P70: мг | Q70: мг | R70: мг | S70: мкг | T70: мкг | U70: мкг
B71: Пятница, 1 неделя
B72: Горячий завтрак | C72: 11-18
A73: 54-11з-2020 | B73: Салат из моркови с яблоками с растительным маслом | C73: 100 | D73: 0.91 | E73: 10.17 | F73: 7.15 | G73: 123.8 | H73: 0.04 | I73: 0.03 | J73: 732.9 | K73: 0 | L73: 2 | M73: 114 | N73: 170 | O73: 19 | P73: 22 | Q73: 32 | R73: 1 | S73: 16.98 | T73: 0.2 | U73: 35.95
A74: 54-6г-2020 | B74: Плов из говядины | C74: 180/40 | D74: 16.86 | E74: 16.22 | F74: 42.44 | G74: 383.1 | H74: 0.07 | I74: 0.13 | J74: 287.76 | K74: 0.11 | L74: 0 | M74: 304 | N74: 295 | O74: 128 | P74: 48 | Q74: 213 | R74: 2.4 | S74: 42.53 | T74: 8.1 | U74: 89.91
A75: 54-4гн-2020 | B75: Компот из кураги | C75: 200 | D75: 0.98 | E75: 0.05 | F75: 15.64 | G75: 66.9 | H75: 0.01 | I75: 0.03 | J75: 69.96 | K75: 0 | L75: 0 | M75: 3 | N75: 285 | O75: 90 | P75: 18 | Q75: 25 | R75: 0.6 | S75: 0 | T75: 0 | U75: 0
A76: Пром. | B76: Хлеб ржаной | C76: 20 | D76: 1.3 | E76: 0.2 | F76: 6.7 | G76: 34.2 | H76: 0.04 | I76: 0.02 | J76: 0 | K76: 0 | L76: 0 | M76: 122 | N76: 49 | O76: 7 | P76: 9.4 | Q76: 31.6 | R76: 0.78 | S76: 0 | T76: 6.18 | U76: 0
A77: Пром. | B77: Хлеб пшеничный | C77: 30 | D77: 2.3 | E77: 0.2 | F77: 14.8 | G77: 70.3 | H77: 0.03 | I77: 0.01 | J77: 0 | K77: 0 | L77: 0 | M77: 149.7 | N77: 27.9 | O77: 6 | P77: 4.2 | Q77: 19.5 | R77: 0.33 | S77: 0.96 | T77: 1.8 | U77: 4.35
B78: Итого за Завтрак | C78: 570 | D78: =SUM(D73:D77) -> 22.35 | E78: =SUM(E73:E77) -> 26.84 | F78: 86.73 | G78: 678.3 | H78: 0.19 | I78: 0.22 | J78: 1090.62 | K78: 0.11 | L78: 2 | M78: 692.7 | N78: 826.9 | O78: 250 | P78: 101.6 | Q78: 321.1 | R78: 5.11 | S78: 60.47 | T78: 16.28 | U78: 130.21
B79: Итого за день | C79: 570 | D79: =D78 -> 22.35 | E79: =E78 -> 26.84 | F79: 86.73 | G79: 678.3 | H79: 0.19 | I79: 0.22 | J79: 1090.62 | K79: 0.11 | L79: 2 | M79: 692.7 | N79: 826.9 | O79: 250 | P79: 101.6 | Q79: 321.1 | R79: 5.11 | S79: 60.47 | T79: 16.28 | U79: 130.21
A82: 7 день, 2 неделя
A83: № рецептуры | B83: Прием пищи, наименование блюда | C83: Масса | D83: Пищевые вещества | G83: Энергетическая ценность | H83: Витамины | M83: Минеральные вещества
D84: Белки | E84: Жиры | F84: Углеводы | H84: B1 | I84: B2 | J84: A | K84: D | L84: C | M84: Na | N84: K | O84: Ca | P84: Mg | Q84: P | R84: Fe | S84: I | T84: Se | U84: F
C85: г | D85: г | E85: г | F85: г | G85: ккал | H85: мг | I85: мг | J85: мкг рет.экв | K85: мкг | L85: мг | M85: мг | N85: мг | O85: мг | P85: мг | Q85: мг | R85: мг | S85: мкг | T85: мкг | U85: мкг
B86: Понедельник, 2 неделя
B87: Горячий завтрак | C87: 11-18
A88: 54-11з-2020 | B88: Салат из моркови с яблоками с растительным маслом | C88: 100 | D88: 0.91 | E88: 10.17 | F88: 7.15 | G88: 123.8 | H88: 0.04 | I88: 0.03 | J88: 732.9 | K88: 0 | L88: 2 | M88: 114 | N88: 170 | O88: 19 | P88: 22 | Q88: 32 | R88: 1 | S88: 16.98 | T88: 0.2 | U88: 35.95
A89: 62 | B89: Борщ | C89: 250 | D89: 3.1 | E89: 7.3 | F89: 16.5 | G89: 151.1 | H89: 0.1 | I89: 0 | J89: 0.3 | K89: 0 | L89: 12 | M89: 0 | N89: 0 | O89: 55 | P89: 33.4 | Q89: 72.4 | R89: 1.6 | S89: 0 | T89: 0 | U89: 0
A90: 54-2гн-2020 | B90: Чай с сахаром | C90: 200 | D90: 0.2 | E90: 0 | F90: 6.4 | G90: 26.8 | H90: 0 | I90: 0.01 | J90: 0.3 | K90: 0 | L90: 0.04 | M90: 0.68 | N90: 20.76 | O90: 66.08 | P90: 3.83 | Q90: 7.18 | R90: 0.73 | S90: 0 | T90: 0 | U90: 0
A91: Пром. | B91: Хлеб пшеничный | C91: 30 | D91: 2.3 | E91: 0.2 | F91: 14.8 | G91: 70.3 | H91: 0.03 | I91: 0.01 | J91: 0 | K91: 0 | L91: 0 | M91: 149.7 | N91: 27.9 | O91: 6 | P91: 4.2 | Q91: 19.5 | R91: 0.33 | S91: 0.96 | T91: 1.8 | U91: 4.35
A92: Пром. | B92: Хлеб ржаной | C92: 20 | D92: 1.3 | E92: 0.2 | F92: 6.7 | G92: 34.2 | H92: 0.04 | I92: 0.02 | J92: 0 | K92: 0 | L92: 0 | M92: 122 | N92: 49 | O92: 7 | P92: 9.4 | Q92: 31.6 | R92: 0.78 | S92: 0 | T92: 6.18 | U92: 0
B93: Итого за Завтрак | C93: =SUM(C88:C92) -> 600 | D93: =SUM(D88:D92) -> 7.81 | E93: =SUM(E88:E92) -> 17.87 | F93: 51.55 | G93: 406.2 | H93: 0.21 | I93: 0.07 | J93: 733.5 | K93: 0 | L93: 14.04 | M93: 386.38 | N93: 267.66 | O93: 153.08 | P93: 72.83 | Q93: 162.68 | R93: 4.44 | S93: 17.94 | T93: 8.18 | U93: 40.3
B94: Итого за день | C94: =C93 -> 600 | D94: =D93 -> 7.81 | E94: 17.87 | F94: 51.55 | G94: 406.2 | H94: 0.21 | I94: 0.07 | J94: 733.5 | K94: 0 | L94: 14.04 | M94: 386.38 | N94: 267.66 | O94: 153.08 | P94: 72.83 | Q94: 162.68 | R94: 4.44 | S94: 17.94 | T94: 8.18 | U94: 40.3
A96: 8 день, 2 неделя
A97: № рецептуры | B97: Прием пищи, наименование блюда | C97: Масса | D97: Пищевые вещества | G97: Энергетическая ценность | H97: Витамины | M97: Минеральные вещества
D98: Белки | E98: Жиры | F98: Углеводы | H98: B1 | I98: B2 | J98: A | K98: D | L98: C | M98: Na | N98: K | O98: Ca | P98: Mg | Q98: P | R98: Fe | S98: I | T98: Se | U98: F
C99: г | D99: г | E99: г | F99: г | G99: ккал | H99: мг | I99: мг | J99: мкг рет.экв | K99: мкг | L99: мг | M99: мг | N99: мг | O99: мг | P99: мг | Q99: мг | R99: мг | S99: мкг | T99: мкг | U99: мкг
B100: Вторник, 2 неделя
B101: Горячий завтрак | C101: 11-18
A102: 54-13з | B102: Салат из свеклы отварной с растительным маслом | C102: 100 | D102: 1.34 | E102: 4.48 | F102: 7.61 | G102: 76.1 | H102: 0.01 | I102: 0.03 | J102: 1.14 | K102: 0 | L102: 4 | M102: 131 | N102: 227 | O102: 32 | P102: 18 | Q102: 36 | R102: 1.2 | S102: 19.98 | T102: 0.6 | U102: 19
A103: 54-12м-2020 | B103: Плов с курицей | C103: 170/50 | D103: 20.34 | E103: 8.18 | F103: 36.38 | G103: 300.4 | H103: 0.08 | I103: 0.07 | J103: 159.36 | K103: 0 | L103: 2 | M103: 301 | N103: 316 | O103: 80 | P103: 87 | Q103: 193 | R103: 1.7 | S103: 41.15 | T103: 21.6 | U103: 129.9
A104: 54-3гн-2020 | B104: Чай с лимоном и сахаром | C104: 207 | D104: 0.2 | E104: 0.1 | F104: 6.6 | G104: 27.9 | H104: 0 | I104: 0.01 | J104: 0.38 | K104: 0 | L104: 1.16 | M104: 1.26 | N104: 30.23 | O104: 67 | P104: 4.56 | Q104: 8.52 | R104: 0.77 | S104: 0.01 | T104: 0.02 | U104: 0.7
A105: Пром. | B105: Хлеб пшеничный | C105: 30 | D105: 2.3 | E105: 0.2 | F105: 14.8 | G105: 70.3 | H105: 0.03 | I105: 0.01 | J105: 0 | K105: 0 | L105: 0 | M105: 149.7 | N105: 27.9 | O105: 6 | P105: 4.2 | Q105: 19.5 | R105: 0.33 | S105: 0.96 | T105: 1.8 | U105: 4.35
A106: Пром. | B106: Хлеб ржаной | C106: 20 | D106: 1.3 | E106: 0.2 | F106: 6.7 | G106: 34.2 | H106: 0.04 | I106: 0.02 | J106: 0 | K106: 0 | L106: 0 | M106: 122 | N106: 49 | O106: 7 | P106: 9.4 | Q106: 31.6 | R106: 0.78 | S106: 0 | T106: 6.18 | U106: 0
B107: Итого за Завтрак | C107: 577 | D107: =SUM(D102:D106) -> 25.48 | E107: =SUM(E102:E106) -> 13.16 | F107: 72.09 | G107: 508.9 | H107: 0.16 | I107: 0.14 | J107: 160.88 | K107: 0 | L107: 7.16 | M107: 704.96 | N107: 650.13 | O107: 192 | P107: 123.16 | Q107: 288.62 | R107: 4.78 | S107: 62.1 | T107: 30.2 | U107: 153.95
B108: Итого за день | C108: 577 | D108: =D107 -> 25.48 | E108: =E107 -> 13.16 | F108: 72.09 | G108: 508.9 | H108: 0.16 | I108: 0.14 | J108: 160.88 | K108: 0 | L108: 7.16 | M108: 704.96 | N108: 650.13 | O108: 192 | P108: 123.16 | Q108: 288.62 | R108: 4.78 | S108: 62.1 | T108: 30.2 | U108: 153.95
A110: 9 день, 2 неделя
A111: № рецептуры | B111: Прием пищи, наименование блюда | C111: Масса | D111: Пищевые вещества | G111: Энергетическая ценность | H111: Витамины | M111: Минеральные вещества
D112: Белки | E112: Жиры | F112: Углеводы | H112: B1 | I112: B2 | J112: A | K112: D | L112: C | M112: Na | N112: K | O112: Ca | P112: Mg | Q112: P | R112: Fe | S112: I | T112: Se | U112: F
C113: г | D113: г | E113: г | F113: г | G113: ккал | H113: мг | I113: мг | J113: мкг рет.экв | K113: мкг | L113: мг | M113: мг | N113: мг | O113: мг | P113: мг | Q113: мг | R113: мг | S113: мкг | T113: мкг | U113: мкг
B114: Среда, 2 неделя
B115: Горячий завтрак | C115: 11-18
A116: 54-16з-2020 | B116: Винегрет с растительным маслом | C116: 100 | D116: 1.17 | E116: 8.95 | F116: 6.67 | G116: 111.9 | H116: 0.03 | I116: 0.02 | J116: 121.48 | K116: 0 | L116: 5 | M116: 335 | N116: 214 | O116: 20 | P116: 16 | Q116: 36 | R116: 0.8 | S116: 13.1 | T116: 0.3 | U116: 19.75
A117: 54-11г-2020 | B117: Картофельное пюре | C117: 180 | D117: 3.69 | E117: 6.37 | F117: 23.79 | G117: 167.3 | H117: 0.14 | I117: 0.12 | J117: 28.55 | K117: 0.11 | L117: 12 | M117: 195 | N117: 750 | O117: 47 | P117: 34 | Q117: 101 | R117: 1.2 | S117: 34.15 | T117: 1 | U117: 51.35
A118: 54-7р-2020 | B118: Рыба припущенная в молоко | C118: 70/30 | D118: 13.09 | E118: 7.52 | F118: 2.89 | G118: 131.6 | H118: 0.08 | I118: 0.11 | J118: 9.02 | K118: 0.16 | L118: 1 | M118: 111 | N118: 347 | O118: 68 | P118: 44 | Q118: 202 | R118: 0.7 | S118: 133.48 | T118: 11.9 | U118: 572.6
A119: 54-21гн-2020 | B119: Какао с молоком | C119: 200 | D119: 4.7 | E119: 3.5 | F119: 12.5 | G119: 100.4 | H119: 0.04 | I119: 0.16 | J119: 17.25 | K119: 0 | L119: 0.68 | M119: 49.95 | N119: 220.33 | O119: 167.68 | P119: 34.32 | Q119: 130.28 | R119: 1.09 | S119: 11.7 | T119: 2.29 | U119: 38.25
A120: Пром. | B120: Хлеб пшеничный | C120: 30 | D120: 2.3 | E120: 0.2 | F120: 14.8 | G120: 70.3 | H120: 0.03 | I120: 0.01 | J120: 0 | K120: 0 | L120: 0 | M120: 149.7 | N120: 27.9 | O120: 6 | P120: 4.2 | Q120: 19.5 | R120: 0.33 | S120: 0.96 | T120: 1.8 | U120: 4.35
A121: Пром. | B121: Хлеб ржаной | C121: 20 | D121: 1.3 | E121: 0.2 | F121: 6.7 | G121: 34.2 | H121: 0.04 | I121: 0.02 | J121: 0 | K121: 0 | L121: 0 | M121: 122 | N121: 49 | O121: 7 | P121: 9.4 | Q121: 31.6 | R121: 0.78 | S121: 0 | T121: 6.18 | U121: 0
B122: Итого за Завтрак | C122: 630 | D122: =SUM(D116:D121) -> 26.25 | E122: 26.74 | F122: 67.35 | G122: 615.7 | H122: 0.36 | I122: 0.44 | J122: 176.3 | K122: 0.27 | L122: 18.68 | M122: 962.65 | N122: 1608.23 | O122: 315.68 | P122: 141.92 | Q122: 520.38 | R122: 4.9 | S122: 193.39 | T122: 23.47 | U122: 686.3
B123: Итого за день | C123: =C122 -> 630 | D123: =D122 -> 26.25 | E123: 26.74 | F123: 67.35 | G123: 615.7 | H123: 0.36 | I123: 0.44 | J123: 176.3 | K123: 0.27 | L123: 18.68 | M123: 962.65 | N123: 1608.23 | O123: 315.68 | P123: 141.92 | Q123: 520.38 | R123: 4.9 | S123: 193.39 | T123: 23.47 | U123: 686.3
A125: 10 день, 2 неделя
A126: № рецептуры | B126: Прием пищи, наименование блюда | C126: Масса | D126: Пищевые вещества | G126: Энергетическая ценность | H126: Витамины | M126: Минеральные вещества
D127: Белки | E127: Жиры | F127: Углеводы | H127: B1 | I127: B2 | J127: A | K127: D | L127: C | M127: Na | N127: K | O127: Ca | P127: Mg | Q127: P | R127: Fe | S127: I | T127: Se | U127: F
C128: г | D128: г | E128: г | F128: г | G128: ккал | H128: мг | I128: мг | J128: мкг рет.экв | K128: мкг | L128: мг | M128: мг | N128: мг | O128: мг | P128: мг | Q128: мг | R128: мг | S128: мкг | T128: мкг | U128: мкг
B129: Четверг, 2 неделя
B130: Горячий завтрак | C130: 11-18
A131: 54-7з | B131: Салат из белокочанной капусты с растительным маслом | C131: 100 | D131: 2.52 | E131: 10.15 | F131: 10.39 | G131: 143 | H131: 0.03 | I131: 0.05 | J131: 122.25 | K131: 0 | L131: 23 | M131: 112 | N131: 343 | O131: 59 | P131: 21 | Q131: 44 | R131: 0.9 | S131: 17.88 | T131: 0.3 | U131: 21.1
A132: 54-6г-2020 | B132: Рис отварной | C132: 180 | D132: 4.32 | E132: 5.78 | F132: 43.74 | G132: 244.2 | H132: 0.04 | I132: 0.03 | J132: 22.03 | K132: 0.11 | L132: 0 | M132: 184 | N132: 56 | O132: 129 | P132: 28 | Q132: 87 | R132: 0.6 | S132: 24.91 | T132: 8.7 | U132: 32.63
A133: 54-2м-2020 | B133: Гуляш из говядины | C133: 60/40 | D133: 13.76 | E133: 13.91 | F133: 3.9 | G133: 195.8 | H133: 0.04 | I133: 0.12 | J133: 25.46 | K133: 0.07 | L133: 1 | M133: 122 | N133: 322 | O133: 55 | P133: 23 | Q133: 166 | R133: 2.5 | S133: 17.06 | T133: 0.4 | U133: 62.71
A134: 54-21гн-2020 | B134: Кофейный напиток с молоком | C134: 200 | D134: 3.9 | E134: 2.9 | F134: 11.2 | G134: 86 | H134: 0.03 | I134: 0.13 | J134: 13.29 | K134: 0 | L134: 0.52 | M134: 38.55 | N134: 183.98 | O134: 148.32 | P134: 30.67 | Q134: 106.79 | R134: 1.06 | S134: 9 | T134: 1.76 | U134: 20
A135: Пром. | B135: Хлеб пшеничный | C135: 30 | D135: 2.3 | E135: 0.2 | F135: 14.8 | G135: 70.3 | H135: 0.03 | I135: 0.01 | J135: 0 | K135: 0 | L135: 0 | M135: 149.7 | N135: 27.9 | O135: 6 | P135: 4.2 | Q135: 19.5 | R135: 0.33 | S135: 0.96 | T135: 1.8 | U135: 4.35
A136: Пром. | B136: Хлеб ржаной | C136: 20 | D136: 1.3 | E136: 0.2 | F136: 6.7 | G136: 34.2 | H136: 0.04 | I136: 0.02 | J136: 0 | K136: 0 | L136: 0 | M136: 122 | N136: 49 | O136: 7 | P136: 9.4 | Q136: 31.6 | R136: 0.78 | S136: 0 | T136: 6.18 | U136: 0
B137: Итого за Завтрак | C137: 630 | D137: =SUM(D131:D136) -> 28.1 | E137: =SUM(E131:E136) -> 33.14 | F137: 90.73 | G137: =SUM(G131:G136) -> 773.5 | H137: 0.21 | I137: 0.36 | J137: 183.03 | K137: 0.18 | L137: 24.52 | M137: 728.25 | N137: 981.88 | O137: 404.32 | P137: 116.27 | Q137: 454.89 | R137: 6.17 | S137: 69.81 | T137: 19.14 | U137: 140.79
B138: Итого за день | C138: =C137 -> 630 | D138: =D137 -> 28.1 | E138: =E137 -> 33.14 | F138: 90.73 | G138: 773.5 | H138: 0.21 | I138: 0.36 | J138: 183.03 | K138: 0.18 | L138: 24.52 | M138: 728.25 | N138: 981.88 | O138: 404.32 | P138: 116.27 | Q138: 454.89 | R138: 6.17 | S138: 69.81 | T138: 19.14 | U138: 140.79
A140: 11 день, 2 неделя
A141: № рецептуры | B141: Прием пищи, наименование блюда | C141: Масса | D141: Пищевые вещества | G141: Энергетическая ценность | H141: Витамины | M141: Минеральные вещества
D142: Белки | E142: Жиры | F142: Углеводы | H142: B1 | I142: B2 | J142: A | K142: D | L142: C | M142: Na | N142: K | O142: Ca | P142: Mg | Q142: P | R142: Fe | S142: I | T142: Se | U142: F
C143: г | D143: г | E143: г | F143: г | G143: ккал | H143: мг | I143: мг | J143: мкг рет.экв | K143: мкг | L143: мг | M143: мг | N143: мг | O143: мг | P143: мг | Q143: мг | R143: мг | S143: мкг | T143: мкг | U143: мкг
B144: Пятница, 2 неделя
B145: Горячий завтрак | C145: 11-18
A146: 54-13з | B146: Салат из свеклы отварной с растительным маслом | C146: 100 | D146: 1.34 | E146: 4.48 | F146: 7.61 | G146: 76.1 | H146: 0.01 | I146: 0.03 | J146: 1.14 | K146: 0 | L146: 4 | M146: 131 | N146: 227 | O146: 32 | P146: 18 | Q146: 36 | R146: 1.2 | S146: 19.98 | T146: 0.6 | U146: 19
A147: 54-1г-2020 | B147: Макароны отварные | C147: 180 | D147: 6.39 | E147: 5.91 | F147: 39.36 | G147: 236.2 | H147: 0.07 | I147: 0.03 | J147: 22.03 | K147: 0.11 | L147: 0 | M147: 179 | N147: 64 | O147: 127 | P147: 9 | Q147: 48 | R147: 0.9 | S147: 24.92 | T147: 0.1 | U147: 14.31
A148: ном.рец №174 | B148: Тефтели мясные из говядины, полуфабрикат в соусе | C148: 75/30 | D148: 10.81 | E148: 10.4 | F148: 8.42 | G148: 168.9 | H148: 0 | I148: 0 | J148: 38.45 | K148: 0.01 | L148: 1.79 | M148: 3 | N148: 43 | O148: 45.75 | P148: 35.13 | Q148: 109 | R148: 1.6 | S148: 0 | T148: 0 | U148: 0
A149: 54-4гн-2020 | B149: Компот из кураги | C149: 200 | D149: 0.98 | E149: 0.05 | F149: 15.64 | G149: 66.9 | H149: 0.01 | I149: 0.03 | J149: 69.96 | K149: 0 | L149: 0 | M149: 3 | N149: 285 | O149: 90 | P149: 18 | Q149: 25 | R149: 0.6 | S149: 0 | T149: 0 | U149: 0
A150: Пром. | B150: Хлеб ржаной | C150: 20 | D150: 1.3 | E150: 0.2 | F150: 6.7 | G150: 34.2 | H150: 0.04 | I150: 0.02 | J150: 0 | K150: 0 | L150: 0 | M150: 122 | N150: 49 | O150: 7 | P150: 9.4 | Q150: 31.6 | R150: 0.78 | S150: 0 | T150: 6.18 | U150: 0
A151: Пром. | B151: Хлеб пшеничный | C151: 30 | D151: 2.3 | E151: 0.2 | F151: 14.8 | G151: 70.3 | H151: 0.03 | I151: 0.01 | J151: 0 | K151: 0 | L151: 0 | M151: 149.7 | N151: 27.9 | O151: 6 | P151: 4.2 | Q151: 19.5 | R151: 0.33 | S151: 0.96 | T151: 1.8 | U151: 4.35
B152: Итого за Завтрак | C152: 635 | D152: =SUM(D146:D151) -> 23.12 | E152: 21.24 | F152: 92.53 | G152: =SUM(G146:G151) -> 652.6 | H152: 0.16 | I152: 0.12 | J152: 131.58 | K152: 0.12 | L152: 5.79 | M152: 587.7 | N152: 695.9 | O152: 307.75 | P152: 93.73 | Q152: 269.1 | R152: 5.41 | S152: 45.86 | T152: 8.68 | U152: 37.66
B153: Итого за день | C153: =C152 -> 635 | D153: =D152 -> 23.12 | E153: 21.24 | F153: 92.53 | G153: 652.6 | H153: 0.16 | I153: 0.12 | J153: 131.58 | K153: 0.12 | L153: 5.79 | M153: 587.7 | N153: 695.9 | O153: 307.75 | P153: 93.73 | Q153: 269.1 | R153: 5.41 | S153: 45.86 | T153: 8.68 | U153: 37.66
D156: ИТОГО ПО МЕНЮ
B158: ИТОГО | C158: Пищевые вещества | F158: Энергетическая ценность | G158: Витамины | L158: Минеральные вещества
C159: Белки | D159: Жиры | E159: Углеводы | G159: B1 | H159: B2 | I159: A | J159: D | K159: C | L159: Na | M159: K | N159: Ca | O159: Mg | P159: P | Q159: Fe | R159: I | S159: Se | T159: F
C160: г | D160: г | E160: г | F160: ккал | G160: мг | H160: мг | I160: мкг рет.экв | J160: мкг | K160: мг | L160: мг | M160: мг | N160: мг | O160: мг | P160: мг | Q160: мг | R160: мкг | S160: мкг | T160: мкг
B161: Итого за весь период | C161: =D21+D35+D50+D65+D79+D94+D108+D123+D138+D153 -> 224.61 | D161: 253.87 | E161: 757.65 | F161: 6211.25 | G161: 2.42 | H161: 2.27 | I161: 3723.98 | J161: 1.03 | K161: 136.74 | L161: 6283.88 | M161: 7935.19 | N161: 2640.8 | O161: 1139.02 | P161: 3437.48 | Q161: 55.09 | R161: 635.7 | S161: 149.62 | T161: 1454.84
B162: Среднее значение | C162: =C161/10 -> 22.46 | D162: =D161/10 -> 25.39 | E162: 75.77 | F162: 621.13 | G162: 0.24 | H162: 0.23 | I162: 372.40 | J162: 0.10 | K162: 13.67 | L162: 628.39 | M162: 793.52 | N162: 264.08 | O162: 113.90 | P162: 343.75 | Q162: 5.51 | R162: 63.57 | S162: 14.96 | T162: 145.48
B163: Содержание белков, жиров, углеводов в меню за период в % от калорийности | C163: 14.39 | D163: =D161*9/F161*100 -> 36.79 | E163: =E161*4*100/F161 -> 48.79
C165: СУММАРНЫЕ ОБЪЕМЫ БЛЮД ПО ПРИЕМАМ ПИЩИ (В ГРАММАХ)
B167: Возраст детей | C167: Горячий завтрак
B168: 11-18 лет | C168: =(C153+C138+C123+C108+C94+C79+C65+C50+C35+C21)/10 -> 614
B170: Овощи для салатов (морковь, лук, капуста, картофель) урожай 2022 года
